bitfinex/quotes_SOLUSD_20250212
["timestamp","ask_amount","ask_price","bid_price","bid_amount"]
[1739374052481,2.1328,193.25,193.21,41.49926623]
[1739374052656,2.1328,193.25,193.2,41.49926623]
[1739374053352,0.063,193.25,193.22,41.49926623]
[1739374053554,0.063,193.25,193.24,41.49926623]
[1739374054574,0.063,193.25,193.21,41.49926623]
[1739374054760,0.063,193.25,193.24,41.49926623]
[1739374055279,0.063,193.25,193.18,5.1765]
[1739374056058,0.063,193.25,193.2,41.49926623]
[1739374056264,41.56226623,193.25,193.18,41.49926623]
[1739374056783,2.0699,193.24,193.18,41.49926623]
[1739374057285,2.0699,193.24,193.19,41.49926623]
[1739374057587,2.0699,193.24,193.13,1.08682895]
[1739374057588,0.063,193.25,193.23,41.49926623]
[1739374057962,0.063,193.25,193.22,41.49926623]
[1739374058182,0.063,193.25,193.21,41.49926623]
[1739374058363,0.063,193.25,193.2,41.49926623]
[1739374058561,0.063,193.25,193.21,41.49926623]
[1739374058782,1.74267607,193.26,193.21,41.49926623]
[1739374058985,41.49926623,193.28,193.22,41.49926623]
[1739374058986,2.0695,193.28,193.22,41.49926623]
[1739374059185,41.49926623,193.27,193.2,41.49926623]
[1739374059375,2.0695,193.28,193.22,41.49926623]
[1739374059973,43.56876623,193.28,193.21,41.49926623]
[1739374060666,2.0695,193.28,193.22,41.49926623]
[1739374060867,41.49926623,193.26,193.19,46.67546623]
[1739374061068,41.49926623,193.27,193.2,41.49926623]
[1739374061258,43.56876623,193.28,193.21,41.49926623]
[1739374061892,2.0695,193.28,193.22,41.49926623]
[1739374062071,2.0695,193.28,193.23,41.49926623]
[1739374062294,2.0695,193.28,193.22,41.49926623]
[1739374062587,2.0695,193.28,193.24,41.49926623]
[1739374062794,43.56876623,193.28,193.21,46.67486623]
[1739374064065,2.0695,193.28,193.22,41.49926623]
[1739374064599,5.236,193.31,193.24,41.49926623]
[1739374064600,2.0694,193.3,193.24,41.49926623]
[1739374065874,2.0694,193.3,193.25,41.49926623]
[1739374066075,2.0694,193.3,193.26,41.49926623]
[1739374066275,2.0694,193.3,193.25,41.49926623]
[1739374066500,2.0694,193.3,193.26,41.49926623]
[1739374066705,41.56226623,193.31,193.24,41.49926623]
[1739374066901,0.063,193.31,193.25,41.49926623]
[1739374067194,0.063,193.3,193.27,41.49926623]
[1739374067403,0.063,193.3,193.29,41.49926623]
[1739374067782,0.063,193.3,193.29,46.67276623]
[1739374068492,0.063,193.3,193.28,46.67306623]
[1739374068792,0.063,193.3,193.29,41.49926623]
[1739374069425,0.063,193.3,193.29,42.71089584]
[1739374069703,0.063,193.3,193.29,47.88439584]
[1739374070105,0.063,193.3,193.29,89.38366207]
[1739374070278,0.063,193.3,193.29,47.88439584]
[1739374071101,0.063,193.3,193.29,46.67276623]
[1739374072008,0.063,193.3,193.29,41.49926623]
[1739374072692,0.063,193.3,193.28,41.49926623]
[1739374072895,0.063,193.3,193.25,41.49926623]
[1739374073093,0.063,193.3,193.26,41.49926623]
[1739374073505,41.56226623,193.3,193.23,46.67416623]
[1739374073809,41.56226623,193.3,193.21,16.18402923]
[1739374073810,41.49926623,193.28,193.22,41.49926623]
[1739374073998,41.49926623,193.29,193.22,41.49926623]
[1739374074182,41.49926623,193.28,193.21,14.54762923]
[1739374074386,41.49926623,193.25,193.21,14.54762923]
[1739374074622,6.0534,193.29,193.21,14.54762923]
[1739374074623,41.49926623,193.24,193.21,14.54762923]
[1739374074917,41.49926623,193.25,193.21,14.54762923]
[1739374075114,2.0695,193.28,193.21,14.54762923]
[1739374075342,41.49926623,193.25,193.21,14.54762923]
[1739374075612,33.53733853,193.26,193.15,61.56]
[1739374075820,41.49926623,193.21,193.15,103.05926623]
[1739374075995,41.49926623,193.2,193.15,61.56]
[1739374076194,41.49926623,193.19,193.15,61.56]
[1739374076398,41.49926623,193.18,193.11,46.70736623]
[1739374076598,41.49926623,193.21,193.14,41.49926623]
[1739374076802,33.53733853,193.26,193.14,41.49926623]
[1739374076803,41.49926623,193.2,193.14,41.49926623]
[1739374077121,43.56946623,193.22,193.15,41.49926623]
[1739374077319,41.49926623,193.23,193.17,41.49926623]
[1739374077615,41.49926623,193.25,193.18,41.49926623]
[1739374078119,41.49926623,193.24,193.18,41.49926623]
[1739374078290,41.49926623,193.24,193.17,41.49926623]
[1739374078493,41.49926623,193.22,193.12,5.1781]
[1739374078799,41.49926623,193.21,193.14,41.49926623]
[1739374078998,41.49926623,193.2,193.14,0.03]
[1739374079196,41.49926623,193.21,193.14,41.52926623]
[1739374079592,41.49926623,193.22,193.15,41.49926623]
[1739374080211,2.0702,193.21,193.15,41.49926623]
[1739374080610,41.49926623,193.25,193.18,41.49926623]
[1739374080898,43.56896623,193.26,193.19,41.49926623]
[1739374081120,43.56896623,193.26,193.18,41.49926623]
[1739374081121,41.49926623,193.24,193.18,41.49926623]
[1739374081513,43.56896623,193.26,193.19,41.49926623]
[1739374082106,41.49926623,193.25,193.18,46.67566623]
[1739374082308,43.56896623,193.26,193.19,41.49926623]
[1739374082507,2.0697,193.26,193.21,41.49926623]
[1739374082703,6.0534,193.29,193.23,41.49926623]
[1739374082704,8.1228,193.29,193.23,41.49926623]
[1739374083215,2.0694,193.29,193.24,41.49926623]
[1739374083421,2.0694,193.29,193.18,6.26309797]
[1739374083605,41.49926623,193.25,193.18,46.67566623]
[1739374083808,43.56906623,193.26,193.19,41.49926623]
[1739374084125,41.49926623,193.25,193.18,41.49926623]
[1739374084299,41.49926623,193.22,193.15,41.49926623]
[1739374084494,22.0698,193.26,193.14,0.03]
[1739374084495,41.49926623,193.2,193.14,0.03]
[1739374084816,13.41184853,193.25,193.14,0.03]
[1739374085016,41.49926623,193.17,193.14,0.03]
[1739374085224,41.49926623,193.15,193.14,0.03]
[1739374085598,55.41307476,193.15,193.14,0.03]
[1739374085802,22.19669,193.12,193.11,0.03]
[1739374085999,77.48427476,193.12,193.11,0.03]
[1739374086199,20.0,193.04,193.01,14.59270372]
[1739374086418,41.49926623,193.02,193.01,0.03]
[1739374087017,54.91111476,193.02,193.01,0.03]
[1739374087219,55.28758476,193.02,193.01,0.03]
[1739374087402,55.41307476,193.02,193.01,0.03]
[1739374087601,55.28758476,193.02,193.01,0.03]
[1739374087916,57.48537476,193.02,193.01,0.03]
[1739374088117,20.50196,192.98,192.95,0.03]
[1739374088322,55.03660476,192.96,192.95,0.03]
[1739374089397,41.49926623,192.96,192.95,0.03]
[1739374089801,34.48603059,193.09,192.95,0.03]
[1739374089802,41.49926623,193.01,192.95,0.03]
[1739374090001,41.49926623,193.02,192.95,41.52926623]
[1739374090213,13.91380853,193.04,192.95,0.03]
[1739374090502,20.0,193.01,192.95,0.03]
[1739374090721,20.0,192.97,192.95,0.03]
[1739374090922,13.53733853,192.96,192.95,0.03]
[1739374091303,41.49926623,192.96,192.95,0.03]
[1739374091512,41.49926623,192.97,192.95,0.03]
[1739374091824,41.49926623,193.0,192.95,0.03]
[1739374092028,2.0716,193.08,192.95,0.03]
[1739374092029,41.49926623,193.02,192.95,41.52926623]
[1739374092330,6.0025,193.09,192.96,0.12549]
[1739374092535,2.0711,193.13,192.98,1.5968]
[1739374092699,20.0,193.11,192.99,1.21324374]
[1739374092904,7.7571912,193.14,193.02,0.25098]
[1739374093216,7.7571912,193.14,193.06,0.12549]
[1739374093522,49.25645743,193.14,193.08,41.49926623]
[1739374093728,7.7571912,193.14,193.08,41.49926623]
[1739374094112,41.49926623,193.13,193.07,41.49926623]
[1739374094314,41.49926623,193.15,193.08,41.49926623]
[1739374095020,41.49926623,193.15,193.06,5.1797]
[1739374095021,41.49926623,193.18,193.07,0.12549]
[1739374095225,41.49926623,193.2,193.14,41.49926623]
[1739374095411,41.49926623,193.21,193.14,41.49926623]
[1739374095605,15.84337859,193.28,193.16,41.49926623]
[1739374095606,41.49926623,193.22,193.16,41.49926623]
[1739374095806,41.49926623,193.2,193.13,41.49926623]
[1739374096029,15.84337859,193.28,193.12,41.49926623]
[1739374096030,2.0697,193.26,193.12,41.49926623]
[1739374096207,41.49926623,193.19,193.12,41.49926623]
[1739374096403,0.37647,193.25,193.11,6.26545864]
[1739374096404,0.25098,193.25,193.11,6.26545864]
[1739374096723,41.49926623,193.19,193.12,41.49926623]
[1739374097243,7.244,193.26,193.14,41.49926623]
[1739374097244,41.49926623,193.21,193.14,41.49926623]
[1739374097838,2.0698,193.25,193.13,46.67696623]
[1739374097839,41.49926623,193.2,193.13,46.67696623]
[1739374098008,20.0,193.17,193.05,5.1798]
[1739374098206,41.49926623,193.11,193.05,46.67906623]
[1739374098430,41.49926623,193.12,193.05,41.49926623]
[1739374098744,41.49926623,193.14,193.07,41.49926623]
[1739374099029,41.49926623,193.12,193.05,41.49926623]
[1739374099240,41.49926623,193.09,193.02,41.49926623]
[1739374099709,41.49926623,193.11,193.04,41.49926623]
[1739374099914,7.2478,193.16,193.0,1.2132357]
[1739374099915,41.49926623,193.1,193.03,41.49926623]
[1739374100107,41.49926623,193.06,192.99,55.52218971]
[1739374100437,41.49926623,193.05,192.98,43.09606623]
[1739374100734,13.53733853,193.12,192.95,41.78024623]
[1739374100735,41.49926623,193.02,192.95,41.78024623]
[1739374101032,41.49926623,193.02,192.95,41.52926623]
[1739374101211,41.49926623,193.01,192.95,0.03]
[1739374101618,41.49926623,193.0,192.95,0.03]
[1739374101835,41.49926623,192.98,192.95,0.03]
[1739374102042,41.49926623,192.97,192.95,0.03]
[1739374102422,41.49926623,192.96,192.95,0.03]
[1739374102743,41.49926623,192.98,192.95,0.03]
[1739374102908,0.12549,193.01,192.95,0.03]
[1739374102909,41.49926623,192.97,192.95,0.03]
[1739374103107,41.49926623,192.98,192.95,0.03]
[1739374103303,43.57176623,193.0,192.95,0.03]
[1739374103614,43.57126623,193.05,192.98,41.49926623]
[1739374103816,41.49926623,193.04,192.97,41.49926623]
[1739374104036,41.49926623,193.03,192.96,41.49926623]
[1739374104331,41.49926623,192.98,192.95,0.03]
[1739374104740,41.49926623,193.0,192.95,0.03]
[1739374105033,41.49926623,192.99,192.95,0.03]
[1739374105238,41.49926623,192.98,192.95,0.03]
[1739374105411,41.49926623,192.99,192.95,0.03]
[1739374105612,61.49926623,193.02,192.95,0.03]
[1739374105812,41.49926623,193.0,192.95,0.03]
[1739374106235,41.49926623,193.01,192.95,0.03]
[1739374106415,41.49926623,193.04,192.97,40.37926623]
[1739374106615,41.49926623,193.05,192.98,41.49926623]
[1739374106976,41.49926623,193.04,192.97,41.49926623]
[1739374107246,41.49926623,193.04,192.98,5.1818]
[1739374107937,41.49926623,193.08,193.0,41.49926623]
[1739374108341,41.49926623,193.09,193.02,41.49926623]
[1739374108518,41.49926623,193.1,193.03,41.49926623]
[1739374108937,41.49926623,193.11,193.04,41.49926623]
[1739374109135,61.49926623,193.12,193.05,41.49926623]
[1739374109342,41.49926623,193.12,193.05,41.49926623]
[1739374109542,41.49926623,193.16,193.09,41.49926623]
[1739374109714,43.56986623,193.18,193.11,41.49926623]
[1739374109914,2.0706,193.18,193.13,41.49926623]
[1739374110217,41.56226623,193.2,193.13,41.49926623]
[1739374110411,41.49926623,193.19,193.12,41.49926623]
[1739374111136,43.63266623,193.2,193.13,41.49926623]
[1739374111336,41.49926623,193.19,193.12,41.49926623]
[1739374111551,0.063,193.2,193.14,41.75024623]
[1739374111753,0.063,193.2,193.19,41.49926623]
[1739374112646,0.063,193.2,193.19,41.75024623]
[1739374113245,0.063,193.2,193.19,5.1762]
[1739374113450,0.063,193.2,193.19,46.67546623]
[1739374115167,0.063,193.2,193.19,41.49926623]
[1739374115378,0.063,193.2,193.15,14.62408926]
[1739374115379,0.063,193.2,193.16,41.49926623]
[1739374115667,41.49926623,193.19,193.12,41.49926623]
[1739374115851,41.56226623,193.2,193.13,41.49926623]
[1739374116060,0.063,193.2,193.15,41.49926623]
[1739374116570,41.56226623,193.2,193.13,46.67686623]
[1739374116986,0.063,193.2,193.14,41.49926623]
[1739374117663,0.063,193.2,193.13,41.49926623]
[1739374117664,43.63266623,193.2,193.13,41.49926623]
[1739374117861,43.63266623,193.2,193.1,14.90547503]
[1739374117862,41.49926623,193.17,193.1,55.31764971]
[1739374118053,2.1334,193.2,193.1,13.81838348]
[1739374118054,41.49926623,193.15,193.1,13.81838348]
[1739374118869,41.49926623,193.16,193.1,13.81838348]
[1739374119068,41.49926623,193.19,193.12,41.49926623]
[1739374119271,41.49926623,193.18,193.11,41.49926623]
[1739374119487,41.49926623,193.16,193.1,13.81838348]
[1739374119653,41.49926623,193.15,193.1,13.81838348]
[1739374119847,41.49926623,193.16,193.1,13.81838348]
[1739374120092,61.49926623,193.12,193.1,13.81838348]
[1739374120261,20.0,193.08,193.03,41.49926623]
[1739374120578,41.49926623,193.1,193.03,41.49926623]
[1739374121277,41.49926623,193.08,193.01,41.49926623]
[1739374121459,41.49926623,193.07,193.0,41.49926623]
[1739374121667,41.49926623,193.05,192.98,41.49926623]
[1739374121856,41.49926623,193.04,192.98,41.49926623]
[1739374122051,41.49926623,193.04,192.97,5.2119]
[1739374122052,41.49926623,193.04,192.97,0.03]
[1739374122264,13.41184853,193.09,192.97,0.03]
[1739374122265,41.49926623,193.03,192.97,0.03]
[1739374122467,41.49926623,193.03,192.97,41.52926623]
[1739374122666,41.49926623,193.03,192.97,0.03]
[1739374123574,2.0723,193.02,192.97,0.03]
[1739374123754,43.57156623,193.02,192.97,0.03]
[1739374124145,2.0723,193.02,192.97,41.52926623]
[1739374124351,2.0723,193.02,192.97,0.03]
[1739374124573,41.49926623,193.0,192.97,0.03]
[1739374124872,20.0,193.04,192.97,0.03]
[1739374124873,41.49926623,193.02,192.97,0.03]
[1739374125171,2.0722,193.03,192.98,41.49926623]
[1739374125470,2.0722,193.03,192.97,0.03]
[1739374125471,41.49926623,193.01,192.97,0.03]
[1739374125646,41.49926623,193.02,192.97,0.03]
[1739374125857,43.57146623,193.03,192.97,0.03]
[1739374126298,43.57156623,193.02,192.97,0.03]
[1739374126969,41.49926623,193.01,192.97,0.03]
[1739374127160,41.49926623,192.98,192.97,0.03]
[1739374129070,43.57196623,192.98,192.97,0.03]
[1739374130791,63.57176623,193.0,192.97,0.03]
[1739374131082,61.49926623,192.99,192.97,0.03]
[1739374131285,41.49926623,192.98,192.97,0.03]
[1739374131662,61.49926623,192.99,192.97,0.03]
[1739374131865,63.57186623,192.99,192.97,0.03]
[1739374132067,2.0725,193.0,192.97,0.03]
[1739374132391,41.49926623,192.98,192.97,0.03]
[1739374132565,41.49926623,192.99,192.97,0.03]
[1739374133264,41.49926623,193.04,192.97,0.03]
[1739374133598,41.49926623,193.04,192.97,41.52926623]
[1739374133760,43.57126623,193.05,192.98,41.49926623]
[1739374133968,41.49926623,193.04,192.97,41.52926623]
[1739374134295,41.49926623,193.0,192.97,0.03]
[1739374134491,41.49926623,193.01,192.97,0.03]
[1739374134790,43.57126623,193.05,192.98,41.49926623]
[1739374135189,41.49926623,193.05,192.98,41.49926623]
[1739374135396,41.49926623,193.07,193.0,41.49926623]
[1739374135695,41.49926623,193.08,193.01,41.49926623]
[1739374135876,2.0715,193.09,193.03,41.49926623]
[1739374136281,61.49926623,193.07,193.0,41.49926623]
[1739374136485,41.49926623,193.05,192.98,53.27536623]
[1739374137062,41.49926623,193.06,192.99,41.49926623]
[1739374137261,41.49926623,193.05,192.98,53.27536623]
[1739374137476,2.0716,193.08,192.98,53.27536623]
[1739374137687,41.49926623,193.04,192.98,53.27536623]
[1739374137893,41.49926623,193.04,192.98,11.7761]
[1739374139408,43.57126623,193.05,192.98,53.27536623]
[1739374139562,43.57086623,193.09,193.02,41.49926623]
[1739374139967,41.49926623,193.12,193.05,41.49926623]
[1739374140268,61.49926623,193.14,193.07,41.49926623]
[1739374140495,41.49926623,193.13,193.06,41.49926623]
[1739374140879,41.49926623,193.16,193.09,41.49926623]
[1739374141190,43.56986623,193.18,193.11,41.49926623]
[1739374141394,41.49926623,193.17,193.1,41.49926623]
[1739374141597,0.063,193.19,193.12,41.49926623]
[1739374141598,41.56226623,193.19,193.12,41.49926623]
[1739374141783,0.063,193.19,193.13,41.49926623]
[1739374141984,41.56226623,193.19,193.12,41.49926623]
[1739374142596,41.56226623,193.19,193.11,6.26548256]
[1739374142597,0.063,193.19,193.14,41.49926623]
[1739374143699,41.56226623,193.19,193.12,41.49926623]
[1739374144197,41.56226623,193.19,193.11,5.1783]
[1739374144198,41.49926623,193.16,193.11,5.1783]
[1739374144530,41.49926623,193.12,193.05,5.18]
[1739374144807,41.49926623,193.07,193.01,62.10179318]
[1739374144994,20.0,193.04,193.01,13.82482695]
[1739374145183,41.49926623,193.04,192.97,46.71116623]
[1739374145380,41.49926623,193.04,192.97,41.52926623]
[1739374145581,43.57136623,193.04,192.97,41.52926623]
[1739374145788,41.49926623,193.07,193.0,41.49926623]
[1739374145997,43.57056623,193.11,193.04,41.49926623]
[1739374146180,2.0713,193.11,193.05,41.49926623]
[1739374146584,41.49926623,193.15,193.07,41.49926623]
[1739374146907,41.49926623,193.15,193.08,41.49926623]
[1739374147076,41.49926623,193.17,193.1,41.49926623]
[1739374147277,41.56226623,193.19,193.12,41.49926623]
[1739374147599,41.56226623,193.19,193.09,0.25098]
[1739374147600,0.063,193.19,193.13,41.49926623]
[1739374147901,0.063,193.19,193.13,25.77330412]
[1739374148499,0.063,193.19,193.17,25.77330412]
[1739374148711,0.063,193.19,193.15,13.66282853]
[1739374148912,0.063,193.19,193.18,25.77330412]
[1739374149223,0.063,193.26,193.22,20.25098]
[1739374149423,0.063,193.26,193.24,13.66282853]
[1739374149628,0.063,193.26,193.25,46.99079788]
[1739374149918,0.063,193.26,193.24,42.9026501]
[1739374150089,0.063,193.26,193.25,41.81619788]
[1739374150492,0.063,193.26,193.22,41.81619788]
[1739374150717,0.063,193.26,193.21,5.1755]
[1739374151206,0.063,193.26,193.21,6.26208383]
[1739374151607,0.063,193.26,193.23,41.81619788]
[1739374151930,0.063,193.26,193.25,41.81619788]
[1739374152533,0.063,193.26,193.25,43.153492]
[1739374153123,0.063,193.26,193.23,41.81619788]
[1739374153422,0.063,193.26,193.22,46.99139788]
[1739374153597,0.063,193.26,193.23,41.81619788]
[1739374153790,0.063,193.26,193.22,41.81619788]
[1739374153987,0.063,193.26,193.2,46.99209788]
[1739374154194,0.063,193.26,193.21,41.81619788]
[1739374154416,0.063,193.26,193.22,41.81619788]
[1739374154595,0.063,193.26,193.23,41.81619788]
[1739374154800,0.063,193.26,193.22,41.81619788]
[1739374155122,0.063,193.26,193.23,41.81619788]
[1739374156615,0.063,193.26,193.21,46.99169788]
[1739374157328,0.063,193.26,193.25,41.81619788]
[1739374157496,0.063,193.26,193.21,5.1755]
[1739374157497,0.063,193.26,193.23,41.81619788]
[1739374158403,0.063,193.26,193.19,2.70731691]
[1739374158404,41.87919788,193.26,193.19,48.61309788]
[1739374158598,41.81619788,193.23,193.19,5.1761]
[1739374158803,41.81619788,193.23,193.17,59.07738759]
[1739374159006,41.81619788,193.22,193.17,17.26118971]
[1739374159310,0.063,193.26,193.1,5.1786]
[1739374159311,41.81619788,193.18,193.1,5.1786]
[1739374159544,41.81619788,193.16,193.1,5.1786]
[1739374159834,41.81619788,193.18,193.11,41.81619788]
[1739374160423,2.0701,193.23,193.12,1.08713496]
[1739374160624,2.0701,193.23,193.17,41.81619788]
[1739374160933,63.88629788,193.23,193.16,41.81619788]
[1739374161118,41.81619788,193.22,193.15,41.81619788]
[1739374161305,41.81619788,193.22,193.16,41.81619788]
[1739374161501,22.0701,193.23,193.17,41.81619788]
[1739374162602,22.0701,193.23,193.15,46.99329788]
[1739374162935,41.81619788,193.2,193.13,46.99379788]
[1739374163108,41.81619788,193.18,193.12,41.81619788]
[1739374163311,41.81619788,193.17,193.11,5.1781]
[1739374163503,22.0701,193.23,193.09,61.62]
[1739374163504,41.81619788,193.14,193.09,61.62]
[1739374164128,41.81619788,193.15,193.09,61.62]
[1739374164316,43.88719788,193.14,193.09,61.62]
[1739374165007,41.81619788,193.1,193.04,41.81619788]
[1739374165226,41.81619788,193.09,193.02,46.99699788]
[1739374165508,41.81619788,193.06,193.0,48.54079788]
[1739374165727,41.81619788,193.07,193.0,46.99729788]
[1739374166142,41.81619788,193.08,193.01,41.81619788]
[1739374166516,41.81619788,193.09,193.02,46.99699788]
[1739374166718,43.88739788,193.12,193.05,41.81619788]
[1739374166939,43.88739788,193.12,193.0,41.81619788]
[1739374166940,41.81619788,193.07,193.0,41.81619788]
[1739374167143,41.81619788,193.05,192.99,41.81619788]
[1739374167328,41.81619788,193.05,192.98,41.81619788]
[1739374167809,41.81619788,193.06,192.99,41.81619788]
[1739374168014,41.81619788,193.05,192.98,41.81619788]
[1739374168539,13.53733853,193.08,192.97,0.03]
[1739374168705,41.81619788,192.99,192.97,0.03]
[1739374169320,41.81619788,193.0,192.97,0.03]
[1739374169619,25.82072704,193.02,192.97,0.03]
[1739374169815,25.82072704,193.03,192.97,0.03]
[1739374170024,13.41184853,193.08,192.97,0.03]
[1739374170025,25.82072704,192.99,192.97,0.03]
[1739374170236,14.53733853,193.08,192.97,0.03]
[1739374170237,20.0,193.01,192.97,0.03]
[1739374170618,25.82072704,192.98,192.97,0.03]
[1739374171129,39.23257557,192.98,192.97,0.03]
[1739374171343,33.66282853,192.96,192.95,0.03]
[1739374171551,59.48355557,192.96,192.95,0.03]
[1739374171844,45.82072704,192.96,192.95,0.03]
[1739374172217,47.89362704,192.96,192.95,0.03]
[1739374173344,22.0729,192.96,192.95,0.03]
[1739374173513,2.0728,192.98,192.95,0.03]
[1739374173942,27.89352704,192.98,192.95,0.03]
[1739374174140,25.82072704,192.97,192.95,0.03]
[1739374174437,2.0726,192.99,192.95,0.03]
[1739374174950,25.82072704,192.96,192.95,0.03]
[1739374175244,39.48355557,192.96,192.95,0.03]
[1739374175411,39.73453557,192.96,192.95,0.03]
[1739374175730,39.23257557,192.96,192.95,0.03]
[1739374176033,39.48355557,192.96,192.95,0.03]
[1739374176209,41.68194557,192.96,192.95,0.0001]
[1739374176636,14.91380853,192.95,192.94,0.03]
[1739374176806,14.91380853,192.95,192.81,0.03]
[1739374176807,0.50196,192.87,192.81,0.03]
[1739374177008,20.0,192.84,192.81,0.03]
[1739374177432,25.82072704,192.9,192.81,0.03]
[1739374177637,6.2595,192.93,192.81,0.03]
[1739374177827,82.2,192.94,192.81,0.03]
[1739374178136,5.1824,192.96,192.82,5.31159]
[1739374178348,12.4369,192.98,192.84,0.50196]
[1739374178520,2.0727,192.98,192.86,0.12549]
[1739374178726,42.01776346,192.93,192.86,42.01776346]
[1739374178942,42.01776346,192.89,192.83,42.01776346]
[1739374179136,42.01776346,192.89,192.82,47.20386346]
[1739374179338,42.01776346,192.91,192.84,42.01776346]
[1739374179513,42.01776346,192.91,192.81,6.7984]
[1739374179514,20.0,192.91,192.81,6.7984]
[1739374179716,42.01776346,192.84,192.81,0.03]
[1739374180023,42.01776346,192.86,192.81,0.03]
[1739374180437,42.01776346,192.84,192.81,0.03]
[1739374180760,42.01776346,192.85,192.81,0.03]
[1739374180923,42.01776346,192.86,192.81,0.03]
[1739374181132,5.1834,192.93,192.81,42.04776346]
[1739374181133,42.01776346,192.88,192.81,42.04776346]
[1739374181442,42.01776346,192.86,192.81,0.03]
[1739374181622,2.0738,192.89,192.81,0.03]
[1739374181623,42.01776346,192.85,192.81,0.03]
[1739374181825,42.01776346,192.84,192.81,0.03]
[1739374182050,42.01776346,192.82,192.81,0.03]
[1739374183024,13.66282853,192.88,192.81,0.03]
[1739374183025,42.01776346,192.84,192.81,0.03]
[1739374183229,44.09196346,192.85,192.81,0.03]
[1739374183442,5.1843,192.89,192.81,0.03]
[1739374183443,42.01776346,192.84,192.81,0.03]
[1739374183621,42.01776346,192.82,192.81,0.03]
[1739374184446,44.09216346,192.82,192.81,0.03]
[1739374185446,86.48639692,192.82,192.81,0.03]
[1739374185823,20.0,192.79,192.77,0.03]
[1739374186024,42.01776346,192.78,192.77,0.03]
[1739374186926,44.09266346,192.78,192.77,0.03]
[1739374189218,57.88098199,192.78,192.77,0.03]
[1739374189424,57.88098199,192.78,192.75,0.03]
[1739374189425,59.00647199,192.78,192.75,0.03]
[1739374189629,42.14325346,192.76,192.75,0.03]
[1739374189856,44.21835346,192.76,192.75,0.03]
[1739374191032,20.0,192.73,192.63,5.1911]
[1739374191230,42.01776346,192.67,192.61,6.901]
[1739374191430,42.01776346,192.67,192.61,1.7094]
[1739374191641,42.01776346,192.65,192.61,1.7094]
[1739374191834,42.01776346,192.67,192.61,1.7094]
[1739374192351,42.01776346,192.63,192.61,0.063]
[1739374192657,42.01776346,192.62,192.61,0.063]
[1739374192848,15.5632,192.76,192.61,0.063]
[1739374193028,2.0755,192.72,192.61,0.063]
[1739374193225,20.0,192.68,192.61,0.063]
[1739374194039,42.01776346,192.65,192.61,0.063]
[1739374194350,42.01776346,192.68,192.62,42.01776346]
[1739374194561,42.01776346,192.66,192.61,0.063]
[1739374194759,42.01776346,192.7,192.63,42.01776346]
[1739374194934,2.0755,192.72,192.61,20.063]
[1739374195139,2.0755,192.72,192.61,0.063]
[1739374195753,2.0754,192.73,192.62,5.1915]
[1739374195948,13.41184853,192.71,192.61,5.2548]
[1739374196134,42.01776346,192.63,192.61,0.063]
[1739374196339,42.01776346,192.65,192.61,0.063]
[1739374196639,42.01776346,192.65,192.61,5.2546]
[1739374196956,42.01776346,192.67,192.61,5.2546]
[1739374197153,42.01776346,192.68,192.61,47.27236346]
[1739374197330,42.01776346,192.68,192.62,42.01776346]
[1739374197669,42.01776346,192.69,192.62,42.01776346]
[1739374197837,42.01776346,192.72,192.65,42.01776346]
[1739374198566,42.01776346,192.71,192.64,42.01776346]
[1739374198750,42.01776346,192.7,192.63,42.14325346]
[1739374198955,42.01776346,192.69,192.64,5.191]
[1739374199461,2.0755,192.73,192.64,5.191]
[1739374199462,42.01776346,192.67,192.64,5.191]
[1739374199633,42.01776346,192.68,192.65,20.0]
[1739374199959,42.01776346,192.74,192.67,42.01776346]
[1739374200351,20.0,192.77,192.67,42.01776346]
[1739374200534,2.0,192.78,192.62,47.20906346]
[1739374200738,1.0,192.77,192.62,5.1913]
[1739374200950,13.66282853,192.74,192.61,5.2548]
[1739374201150,20.0,192.71,192.61,6.34477919]
[1739374201359,20.0,192.71,192.61,5.2548]
[1739374201665,42.01776346,192.69,192.62,42.01776346]
[1739374201964,42.01776346,192.74,192.67,43.58506346]
[1739374202168,22.88692215,192.84,192.7,20.12549]
[1739374202169,5.186,192.83,192.7,20.12549]
[1739374202329,42.08076346,192.81,192.74,42.01776346]